[Event "*** SCC Grand Prix: Titled Tuesday Blitz"]
[Site "Chess.com"]
[Date "2020.07.21"]
[Round "9"]
[White "pfalcon1949"]
[Black "cukin84"]
[Result "0-1"]
[WhiteElo "2002"]
[BlackElo "2168"]
[TimeControl "180+1"]
[EndTime "11:48:16 PDT"]
[Termination "cukin84 won by resignation"]

1. d4 {[%clk 0:03:00.9]} 1... f5 {[%clk 0:02:59.6]} 2. c4 {[%clk 0:03:01]} 2...
Nf6 {[%clk 0:02:58.9]} 3. Nf3 {[%clk 0:03:01.3]} 3... g6 {[%clk 0:02:58.6]} 4.
g3 {[%clk 0:03:01.9]} 4... Bg7 {[%clk 0:02:56.4]} 5. Bg2 {[%clk 0:03:02.8]} 5...
d6 {[%clk 0:02:55.5]} 6. O-O {[%clk 0:03:03.7]} 6... O-O {[%clk 0:02:54.5]} 7.
d5 {[%clk 0:03:02.5]} 7... a5 {[%clk 0:02:53.1]} 8. Nc3 {[%clk 0:03:02.7]} 8...
Na6 {[%clk 0:02:51.4]} 9. Bg5 {[%clk 0:03:02.8]} 9... Nc5 {[%clk 0:02:48.4]} 10.
Bxf6 {[%clk 0:03:02.8]} 10... Bxf6 {[%clk 0:02:47.6]} 11. Qc2 {[%clk 0:03:00.4]}
11... Bd7 {[%clk 0:02:44.9]} 12. Rfe1 {[%clk 0:03:00.9]} 12... Qe8 {[%clk
0:02:35.4]} 13. Rab1 {[%clk 0:03:00.6]} 13... Qf7 {[%clk 0:02:33.7]} 14. e4
{[%clk 0:02:54.2]} 14... fxe4 {[%clk 0:02:31.9]} 15. Nd2 {[%clk 0:02:43]} 15...
e3 {[%clk 0:02:18.8]} 16. fxe3 {[%clk 0:02:42.6]} 16... Bf5 {[%clk 0:02:19]} 17.
e4 {[%clk 0:02:41]} 17... Bg4 {[%clk 0:02:18]} 18. Rf1 {[%clk 0:02:35.2]} 18...
Qg7 {[%clk 0:02:13.7]} 19. Nb3 {[%clk 0:02:26.2]} 19... b6 {[%clk 0:02:07.1]}
20. Nxc5 {[%clk 0:02:21.6]} 20... bxc5 {[%clk 0:02:07.1]} 21. Nb5 {[%clk
0:02:21.2]} 21... Bd4+ {[%clk 0:02:01.2]} 22. Nxd4 {[%clk 0:02:17.9]} 22...
Qxd4+ {[%clk 0:02:00.6]} 23. Kh1 {[%clk 0:02:17.2]} 23... Rf6 {[%clk 0:01:58.1]}
24. Rxf6 {[%clk 0:02:15.2]} 24... exf6 {[%clk 0:01:57.8]} 25. Rf1 {[%clk
0:02:04.8]} 25... Rb8 {[%clk 0:01:55.1]} 26. b3 {[%clk 0:02:04.5]} 26... a4
{[%clk 0:01:53.9]} 27. h3 {[%clk 0:01:49.7]} 27... axb3 {[%clk 0:01:53.2]} 28.
axb3 {[%clk 0:01:49.1]} 28... Bd7 {[%clk 0:01:53.1]} 29. Kh2 {[%clk 0:01:47.4]}
29... Ra8 {[%clk 0:01:52.6]} 30. Qe2 {[%clk 0:01:32.4]} 30... Ra3 {[%clk
0:01:47.7]} 31. Qf3 {[%clk 0:01:32.1]} 31... Kg7 {[%clk 0:01:46.1]} 32. g4
{[%clk 0:01:30.4]} 32... Qe5+ {[%clk 0:01:43.7]} 33. Kh1 {[%clk 0:01:29.5]}
33... Ba4 {[%clk 0:01:40.8]} 34. Rb1 {[%clk 0:01:20.9]} 34... Ra1 {[%clk
0:01:38.5]} 35. Rxa1 {[%clk 0:01:12.7]} 35... Qxa1+ {[%clk 0:01:39.4]} 36. Kh2
{[%clk 0:01:12.8]} 36... Qe5+ {[%clk 0:01:37.9]} 37. Kg1 {[%clk 0:01:10.2]}
37... Qd4+ {[%clk 0:01:37.3]} 38. Kh2 {[%clk 0:01:10.1]} 38... Bd7 {[%clk
0:01:35.3]} 39. g5 {[%clk 0:01:09.6]} 39... f5 {[%clk 0:01:34.4]} 40. exf5
{[%clk 0:01:08.8]} 40... Bxf5 {[%clk 0:01:34]} 41. Qe2 {[%clk 0:01:04.3]} 41...
Qf4+ {[%clk 0:01:29.4]} 42. Kh1 {[%clk 0:01:00.6]} 42... Qxg5 {[%clk 0:01:29.3]}
43. Qe8 {[%clk 0:00:59.9]} 43... Qc1+ {[%clk 0:01:26.4]} 44. Kh2 {[%clk
0:00:59.3]} 44... Qf4+ {[%clk 0:01:26.3]} 45. Kg1 {[%clk 0:00:59.8]} 45... Kh6
{[%clk 0:01:22.9]} 46. Qf8+ {[%clk 0:00:58.7]} 46... Kh5 {[%clk 0:01:22.7]} 47.
Qf7 {[%clk 0:00:56.5]} 47... Qd4+ {[%clk 0:01:16.5]} 48. Kh1 {[%clk 0:00:54.8]}
48... h6 {[%clk 0:01:10.3]} 49. Bf3+ {[%clk 0:00:53.3]} 49... Kh4 {[%clk
0:01:06.5]} 50. Qe7+ {[%clk 0:00:53.3]} 50... Kg3 {[%clk 0:01:05.6]} 51. Qe1+
{[%clk 0:00:15.1]} 51... Kxf3 {[%clk 0:01:03.7]} 52. Qf1+ {[%clk 0:00:15.3]}
52... Qf2 {[%clk 0:01:03.4]} 53. Qd1+ {[%clk 0:00:15.5]} 53... Kg3 {[%clk
0:01:02.2]} 54. Qg1+ {[%clk 0:00:12.5]} 54... Qxg1+ {[%clk 0:01:01.9]} 55. Kxg1
{[%clk 0:00:12.5]} 55... Bxh3 {[%clk 0:01:01.9]} 0-1

[Event "*** SCC Grand Prix: Titled Tuesday Blitz"]
[Site "Chess.com"]
[Date "2020.07.21"]
[Round "9"]
[White "nikitakhoroshev"]
[Black "Tooweak2slow03"]
[Result "1-0"]
[WhiteElo "2555"]
[BlackElo "2677"]
[TimeControl "180+1"]
[EndTime "11:48:20 PDT"]
[Termination "nikitakhoroshev won by checkmate"]

1. d4 {[%clk 0:03:00.9]} 1... e6 {[%clk 0:02:56.6]} 2. c4 {[%clk 0:03:01.4]}
2... f5 {[%clk 0:02:56.1]} 3. Nc3 {[%clk 0:02:55.5]} 3... Bb4 {[%clk 0:02:55.5]}
4. Qb3 {[%clk 0:02:52.2]} 4... a5 {[%clk 0:02:54.5]} 5. a3 {[%clk 0:02:51.9]}
5... Bxc3+ {[%clk 0:02:53.7]} 6. Qxc3 {[%clk 0:02:52.8]} 6... a4 {[%clk
0:02:54.1]} 7. f3 {[%clk 0:02:50.5]} 7... Nf6 {[%clk 0:02:52.9]} 8. Bg5 {[%clk
0:02:49.9]} 8... h6 {[%clk 0:02:46.5]} 9. Bh4 {[%clk 0:02:49.2]} 9... O-O {[%clk
0:02:45.2]} 10. e3 {[%clk 0:02:48.9]} 10... d6 {[%clk 0:02:44.4]} 11. Bd3 {[%clk
0:02:48.5]} 11... Nbd7 {[%clk 0:02:43.4]} 12. Ne2 {[%clk 0:02:48.3]} 12... Qe8
{[%clk 0:02:43.1]} 13. Bf2 {[%clk 0:02:44.8]} 13... b6 {[%clk 0:02:42.7]} 14.
O-O {[%clk 0:02:39.4]} 14... Bb7 {[%clk 0:02:41.6]} 15. Rae1 {[%clk 0:02:39.9]}
15... Qg6 {[%clk 0:02:38.9]} 16. Nf4 {[%clk 0:02:38.7]} 16... Qf7 {[%clk
0:02:37.3]} 17. Qc2 {[%clk 0:02:35.3]} 17... g5 {[%clk 0:02:35.4]} 18. Ne2
{[%clk 0:02:35.4]} 18... Qg7 {[%clk 0:02:26.9]} 19. Ng3 {[%clk 0:02:28.7]} 19...
h5 {[%clk 0:02:21.9]} 20. d5 {[%clk 0:02:17]} 20... h4 {[%clk 0:02:18.9]} 21.
Ne2 {[%clk 0:02:17.1]} 21... h3 {[%clk 0:01:55.2]} 22. g3 {[%clk 0:02:00.6]}
22... Nc5 {[%clk 0:01:42.3]} 23. Nd4 {[%clk 0:01:58.7]} 23... Nxd3 {[%clk
0:01:32.4]} 24. Qxd3 {[%clk 0:01:59.6]} 24... exd5 {[%clk 0:01:23.3]} 25. Nxf5
{[%clk 0:01:54.6]} 25... Qh7 {[%clk 0:01:20.1]} 26. cxd5 {[%clk 0:01:52.6]}
26... Ba6 {[%clk 0:01:18]} 27. Qc2 {[%clk 0:01:46.5]} 27... Bxf1 {[%clk
0:01:17.3]} 28. Rxf1 {[%clk 0:01:47.4]} 28... Nxd5 {[%clk 0:01:14.1]} 29. e4
{[%clk 0:01:45]} 29... Ne7 {[%clk 0:01:14.3]} 30. g4 {[%clk 0:01:31.9]} 30...
Nxf5 {[%clk 0:01:11.1]} 31. gxf5 {[%clk 0:01:31.9]} 31... Qh5 {[%clk 0:01:01.1]}
32. Bd4 {[%clk 0:01:30.7]} 32... c5 {[%clk 0:00:57.8]} 33. Bc3 {[%clk
0:01:28.5]} 33... g4 {[%clk 0:00:54.4]} 34. Kh1 {[%clk 0:01:23.9]} 34... Kh7
{[%clk 0:00:50.4]} 35. Qd2 {[%clk 0:01:17.8]} 35... gxf3 {[%clk 0:00:49.2]} 36.
Qxd6 {[%clk 0:01:17.1]} 36... Rf7 {[%clk 0:00:37.2]} 37. Qf4 {[%clk 0:01:00.6]}
37... Rd8 {[%clk 0:00:31.5]} 38. Rg1 {[%clk 0:00:51]} 38... Rd3 {[%clk
0:00:19.1]} 39. Qb8 {[%clk 0:00:38.6]} 39... Qg4 {[%clk 0:00:04.8]} 40. Qh8#
{[%clk 0:00:36.9]} 1-0

[Event "*** SCC Grand Prix: Titled Tuesday Blitz"]
[Site "Chess.com"]
[Date "2020.07.21"]
[Round "9"]
[White "EvgenyT"]
[Black "baag"]
[Result "0-1"]
[WhiteElo "2898"]
[BlackElo "2710"]
[TimeControl "180+1"]
[EndTime "11:48:22 PDT"]
[Termination "baag won on time"]

1. d4 {[%clk 0:03:00.9]} 1... Nf6 {[%clk 0:02:59.6]} 2. Nf3 {[%clk 0:03:00.5]}
2... e6 {[%clk 0:03:00]} 3. g3 {[%clk 0:02:57.4]} 3... d5 {[%clk 0:02:58.1]} 4.
Bg2 {[%clk 0:02:57.3]} 4... Be7 {[%clk 0:02:59]} 5. O-O {[%clk 0:02:57]} 5...
O-O {[%clk 0:02:59.9]} 6. Nbd2 {[%clk 0:02:56.4]} 6... c5 {[%clk 0:02:58.3]} 7.
c4 {[%clk 0:02:52.9]} 7... cxd4 {[%clk 0:02:45.3]} 8. Nxd4 {[%clk 0:02:51.9]}
8... Nc6 {[%clk 0:02:45.8]} 9. Nxc6 {[%clk 0:02:46.8]} 9... bxc6 {[%clk
0:02:46.7]} 10. Qc2 {[%clk 0:02:46.1]} 10... Ba6 {[%clk 0:02:43.3]} 11. b3
{[%clk 0:02:42.4]} 11... Rc8 {[%clk 0:02:31.6]} 12. Bb2 {[%clk 0:02:41.7]} 12...
c5 {[%clk 0:02:26]} 13. cxd5 {[%clk 0:02:26.8]} 13... exd5 {[%clk 0:02:25.6]}
14. Rfe1 {[%clk 0:02:21.5]} 14... Qb6 {[%clk 0:02:14.7]} 15. Rad1 {[%clk
0:02:08.5]} 15... c4 {[%clk 0:01:49.5]} 16. Bxf6 {[%clk 0:01:57.9]} 16... Bxf6
{[%clk 0:01:25.7]} 17. Bxd5 {[%clk 0:01:53.9]} 17... cxb3 {[%clk 0:01:25.6]} 18.
Qxb3 {[%clk 0:01:53.1]} 18... Qxb3 {[%clk 0:01:18.4]} 19. axb3 {[%clk
0:01:52.5]} 19... Bc3 {[%clk 0:01:18.8]} 20. e4 {[%clk 0:01:04.8]} 20... Bd3
{[%clk 0:01:18.4]} 21. Nc4 {[%clk 0:01:04.2]} 21... Bc2 {[%clk 0:01:08.9]} 22.
Rc1 {[%clk 0:00:58.9]} 22... Bxe1 {[%clk 0:01:08.9]} 23. Rxc2 {[%clk 0:00:58.8]}
23... Bb4 {[%clk 0:01:09.5]} 24. Ra2 {[%clk 0:00:55.4]} 24... Rc7 {[%clk
0:01:07.5]} 25. Ra6 {[%clk 0:00:53.1]} 25... g6 {[%clk 0:01:04.2]} 26. Kg2
{[%clk 0:00:52.6]} 26... Kg7 {[%clk 0:01:04.6]} 27. h4 {[%clk 0:00:50.4]} 27...
h5 {[%clk 0:01:04]} 28. f4 {[%clk 0:00:48.8]} 28... Rd8 {[%clk 0:01:02.5]} 29.
Ra4 {[%clk 0:00:37.3]} 29... Rb8 {[%clk 0:00:53.5]} 30. Ra6 {[%clk 0:00:21.3]}
30... Bc3 {[%clk 0:00:49.1]} 31. Nd6 {[%clk 0:00:19.1]} 31... Bb4 {[%clk
0:00:42.8]} 32. e5 {[%clk 0:00:11.7]} 32... Bxd6 {[%clk 0:00:40.9]} 33. exd6
{[%clk 0:00:11.4]} 33... Rd7 {[%clk 0:00:40.7]} 34. Kf3 {[%clk 0:00:08.2]} 34...
Rb6 {[%clk 0:00:40.8]} 35. Rxb6 {[%clk 0:00:05.1]} 35... axb6 {[%clk 0:00:41.7]}
36. Ke4 {[%clk 0:00:05.5]} 36... Rxd6 {[%clk 0:00:42.2]} 37. Ke5 {[%clk
0:00:05.8]} 37... Rd7 {[%clk 0:00:41.6]} 38. b4 {[%clk 0:00:05.9]} 38... Kf8
{[%clk 0:00:40.9]} 39. b5 {[%clk 0:00:05.8]} 39... Ke7 {[%clk 0:00:40.4]} 0-1

[Event "*** SCC Grand Prix: Titled Tuesday Blitz"]
[Site "Chess.com"]
[Date "2020.07.21"]
[Round "9"]
[White "LedakovAlexandr"]
[Black "Julianos82"]
[Result "1-0"]
[WhiteElo "2481"]
[BlackElo "2265"]
[TimeControl "180+1"]
[EndTime "11:48:22 PDT"]
[Termination "LedakovAlexandr won by resignation"]

1. d4 {[%clk 0:02:52.4]} 1... d5 {[%clk 0:02:59.6]} 2. Nf3 {[%clk 0:02:52.3]}
2... c6 {[%clk 0:02:59.3]} 3. c4 {[%clk 0:02:52.8]} 3... dxc4 {[%clk 0:03:00.2]}
4. a4 {[%clk 0:02:51.5]} 4... Nf6 {[%clk 0:02:59.5]} 5. Nc3 {[%clk 0:02:48.8]}
5... Bf5 {[%clk 0:02:57.7]} 6. Ne5 {[%clk 0:02:47.2]} 6... e6 {[%clk 0:02:56.5]}
7. f3 {[%clk 0:02:45.2]} 7... Bb4 {[%clk 0:02:52.1]} 8. Nxc4 {[%clk 0:02:44.8]}
8... Nd5 {[%clk 0:02:45.8]} 9. Qb3 {[%clk 0:02:34.4]} 9... Qh4+ {[%clk
0:02:37.6]} 10. g3 {[%clk 0:02:29.6]} 10... Qxd4 {[%clk 0:02:34.1]} 11. Bd2
{[%clk 0:02:30.1]} 11... Na6 {[%clk 0:01:49.2]} 12. Nxd5 {[%clk 0:02:07]} 12...
exd5 {[%clk 0:01:39.1]} 13. Bxb4 {[%clk 0:02:00.8]} 13... dxc4 {[%clk
0:01:26.5]} 14. Bc3 {[%clk 0:01:42.2]} 14... cxb3 {[%clk 0:01:19.8]} 15. Bxd4
{[%clk 0:01:40.8]} 15... f6 {[%clk 0:01:14.3]} 16. e4 {[%clk 0:01:39.2]} 16...
Be6 {[%clk 0:01:11.5]} 17. Bxa6 {[%clk 0:01:38]} 17... bxa6 {[%clk 0:01:12.4]}
18. Ke2 {[%clk 0:01:32.3]} 18... O-O-O {[%clk 0:01:12]} 19. Rhd1 {[%clk
0:01:29.8]} 19... Kb7 {[%clk 0:01:10.8]} 20. Ke3 {[%clk 0:01:26]} 20... Rd7
{[%clk 0:01:06.9]} 21. Rd2 {[%clk 0:01:19.8]} 21... Rhd8 {[%clk 0:01:06.6]} 22.
Rad1 {[%clk 0:01:20.2]} 22... h5 {[%clk 0:01:03]} 23. h4 {[%clk 0:01:18.3]}
23... a5 {[%clk 0:00:57.7]} 24. Rc1 {[%clk 0:01:09.9]} 24... g6 {[%clk
0:00:43.2]} 25. Rc5 {[%clk 0:01:06.7]} 25... f5 {[%clk 0:00:39.1]} 26. Rxa5
{[%clk 0:00:59.7]} 26... a6 {[%clk 0:00:37.8]} 27. Re5 {[%clk 0:00:54.1]} 27...
Rd6 {[%clk 0:00:34.2]} 28. Bc3 {[%clk 0:00:48.3]} 28... fxe4 {[%clk 0:00:30.9]}
29. Rxd6 {[%clk 0:00:39.2]} 29... Rxd6 {[%clk 0:00:31.8]} 30. Bb4 {[%clk
0:00:17.5]} 30... Rd3+ {[%clk 0:00:19.8]} 31. Kxe4 {[%clk 0:00:17.6]} 31... Bf5+
{[%clk 0:00:18.5]} 32. Rxf5 {[%clk 0:00:17]} 1-0

[Event "*** SCC Grand Prix: Titled Tuesday Blitz"]
[Site "Chess.com"]
[Date "2020.07.21"]
[Round "9"]
[White "grandcoach"]
[Black "Boudicca64"]
[Result "1-0"]
[WhiteElo "2122"]
[BlackElo "1794"]
[TimeControl "180+1"]
[EndTime "11:48:25 PDT"]
[Termination "grandcoach won on time"]

1. e4 {[%clk 0:03:00.9]} 1... c5 {[%clk 0:02:58.3]} 2. b4 {[%clk 0:03:00]} 2...
b6 {[%clk 0:02:56.2]} 3. Nf3 {[%clk 0:02:55.2]} 3... Bb7 {[%clk 0:02:53.2]} 4.
Bc4 {[%clk 0:02:54.4]} 4... e6 {[%clk 0:02:47.9]} 5. bxc5 {[%clk 0:02:42.8]}
5... Bxe4 {[%clk 0:02:26.8]} 6. Nc3 {[%clk 0:02:38.9]} 6... Bb7 {[%clk
0:02:23.3]} 7. cxb6 {[%clk 0:02:37.1]} 7... axb6 {[%clk 0:02:18.8]} 8. O-O
{[%clk 0:02:30.9]} 8... Nf6 {[%clk 0:02:17.5]} 9. Re1 {[%clk 0:02:06.5]} 9...
Be7 {[%clk 0:02:16]} 10. a4 {[%clk 0:02:01.4]} 10... O-O {[%clk 0:02:06.2]} 11.
Ba3 {[%clk 0:02:00.6]} 11... d5 {[%clk 0:02:02.2]} 12. Bxe7 {[%clk 0:01:57.6]}
12... Qxe7 {[%clk 0:02:01.3]} 13. Bb5 {[%clk 0:01:49]} 13... Nbd7 {[%clk
0:01:40.4]} 14. Nd4 {[%clk 0:01:35.3]} 14... Qd6 {[%clk 0:01:24.4]} 15. Qf3
{[%clk 0:01:25.2]} 15... g6 {[%clk 0:01:09.9]} 16. Qg3 {[%clk 0:01:22.1]} 16...
Qxg3 {[%clk 0:00:45.3]} 17. hxg3 {[%clk 0:01:23]} 17... Rac8 {[%clk 0:00:43.6]}
18. Rab1 {[%clk 0:01:08.3]} 18... e5 {[%clk 0:00:41.5]} 19. Nf3 {[%clk
0:01:00.4]} 19... e4 {[%clk 0:00:39.9]} 20. Nd4 {[%clk 0:00:59]} 20... Nc5
{[%clk 0:00:23.9]} 21. Be2 {[%clk 0:00:47.4]} 21... Ne6 {[%clk 0:00:16]} 22.
Nxe6 {[%clk 0:00:43.2]} 22... fxe6 {[%clk 0:00:15]} 23. Rxb6 {[%clk 0:00:43.8]}
23... d4 {[%clk 0:00:14.2]} 24. Nb5 {[%clk 0:00:35.9]} 24... Bd5 {[%clk
0:00:08.2]} 25. Nxd4 {[%clk 0:00:30.7]} 25... e5 {[%clk 0:00:07.6]} 26. Nb5
{[%clk 0:00:15.5]} 26... Rxc2 {[%clk 0:00:06]} 27. Bf1 {[%clk 0:00:08.2]} 27...
Rxd2 {[%clk 0:00:04.3]} 28. Nc3 {[%clk 0:00:08.3]} 28... Ba8 {[%clk 0:00:01.6]}
29. Bc4+ {[%clk 0:00:05.7]} 1-0

[Event "*** SCC Grand Prix: Titled Tuesday Blitz"]
[Site "Chess.com"]
[Date "2020.07.21"]
[Round "9"]
[White "CraiggoryC"]
[Black "larisakalinina"]
[Result "0-1"]
[WhiteElo "2143"]
[BlackElo "1963"]
[TimeControl "180+1"]
[EndTime "11:48:26 PDT"]
[Termination "larisakalinina won on time"]

1. e4 {[%clk 0:03:00.9]} 1... c5 {[%clk 0:02:53.8]} 2. Nc3 {[%clk 0:03:00.7]}
2... a6 {[%clk 0:02:52.8]} 3. g3 {[%clk 0:02:56.2]} 3... b5 {[%clk 0:02:53]} 4.
Bg2 {[%clk 0:02:56.5]} 4... Bb7 {[%clk 0:02:53.1]} 5. d3 {[%clk 0:02:55.8]} 5...
e6 {[%clk 0:02:52.8]} 6. f4 {[%clk 0:02:54.2]} 6... Nf6 {[%clk 0:02:50.3]} 7.
Nf3 {[%clk 0:02:53.8]} 7... b4 {[%clk 0:02:48]} 8. Ne2 {[%clk 0:02:52.8]} 8...
d5 {[%clk 0:02:46.7]} 9. e5 {[%clk 0:02:51.7]} 9... Nfd7 {[%clk 0:02:46.1]} 10.
O-O {[%clk 0:02:50.5]} 10... Nc6 {[%clk 0:02:46.1]} 11. d4 {[%clk 0:02:41.1]}
11... Be7 {[%clk 0:02:35.5]} 12. Kh1 {[%clk 0:02:38.9]} 12... O-O {[%clk
0:02:35.7]} 13. c3 {[%clk 0:02:35.7]} 13... bxc3 {[%clk 0:02:30.7]} 14. bxc3
{[%clk 0:02:35.9]} 14... cxd4 {[%clk 0:02:30.3]} 15. cxd4 {[%clk 0:02:35.3]}
15... f6 {[%clk 0:02:30.2]} 16. Rb1 {[%clk 0:02:26]} 16... Rb8 {[%clk 0:02:28]}
17. Bd2 {[%clk 0:02:08.8]} 17... fxe5 {[%clk 0:02:25.2]} 18. dxe5 {[%clk
0:02:06.9]} 18... Nc5 {[%clk 0:02:07.9]} 19. Ned4 {[%clk 0:02:00]} 19... Qd7
{[%clk 0:01:59.2]} 20. Nxc6 {[%clk 0:01:46.9]} 20... Bxc6 {[%clk 0:02:00.1]} 21.
Nd4 {[%clk 0:01:46.3]} 21... Ba4 {[%clk 0:01:54.9]} 22. Qg4 {[%clk 0:01:34.7]}
22... Rxb1 {[%clk 0:01:19.9]} 23. Rxb1 {[%clk 0:01:33.4]} 23... Bb5 {[%clk
0:01:02.1]} 24. Bb4 {[%clk 0:01:13.3]} 24... Bd3 {[%clk 0:00:55]} 25. Rd1 {[%clk
0:00:47.6]} 25... Bf5 {[%clk 0:00:53]} 26. Nxf5 {[%clk 0:00:33.7]} 26... Rxf5
{[%clk 0:00:53]} 27. Bxc5 {[%clk 0:00:08.1]} 27... Bxc5 {[%clk 0:00:46.6]} 28.
Rc1 {[%clk 0:00:08.4]} 28... Qb5 {[%clk 0:00:39.8]} 29. Bxd5 {[%clk 0:00:06.1]}
29... Rf8 {[%clk 0:00:16.5]} 30. Qxe6+ {[%clk 0:00:05.1]} 30... Kh8 {[%clk
0:00:15.3]} 31. h4 {[%clk 0:00:02.2]} 31... Bf2 {[%clk 0:00:10.8]} 32. Kg2
{[%clk 0:00:01.2]} 32... Qe2 {[%clk 0:00:09.4]} 0-1

[Event "*** SCC Grand Prix: Titled Tuesday Blitz"]
[Site "Chess.com"]
[Date "2020.07.21"]
[Round "9"]
[White "BakaPG"]
[Black "ChessicallyInclined"]
[Result "1-0"]
[WhiteElo "2658"]
[BlackElo "2509"]
[TimeControl "180+1"]
[EndTime "11:48:27 PDT"]
[Termination "BakaPG won by resignation"]

1. e4 {[%clk 0:03:00.9]} 1... c5 {[%clk 0:02:54.5]} 2. Nf3 {[%clk 0:02:57.7]}
2... Nc6 {[%clk 0:02:54.9]} 3. Nc3 {[%clk 0:02:56]} 3... e5 {[%clk 0:02:53.3]}
4. Bc4 {[%clk 0:02:54.6]} 4... Be7 {[%clk 0:02:50]} 5. d3 {[%clk 0:02:52]} 5...
d6 {[%clk 0:02:48.1]} 6. Nd2 {[%clk 0:02:51.7]} 6... Nf6 {[%clk 0:02:45.1]} 7.
Nf1 {[%clk 0:02:51.6]} 7... O-O {[%clk 0:02:39.2]} 8. Ne3 {[%clk 0:02:51.5]}
8... Nd7 {[%clk 0:02:36.9]} 9. a4 {[%clk 0:02:48.3]} 9... Bg5 {[%clk 0:02:18.2]}
10. h4 {[%clk 0:02:46.9]} 10... Bxe3 {[%clk 0:02:08.7]} 11. Bxe3 {[%clk
0:02:45.4]} 11... Nb6 {[%clk 0:02:08.9]} 12. Ba2 {[%clk 0:02:43]} 12... Be6
{[%clk 0:02:09.2]} 13. Nd5 {[%clk 0:02:42.1]} 13... Ne7 {[%clk 0:02:01.6]} 14.
c4 {[%clk 0:02:36.5]} 14... Nbxd5 {[%clk 0:01:59.4]} 15. cxd5 {[%clk 0:02:36.2]}
15... Bd7 {[%clk 0:01:59.9]} 16. h5 {[%clk 0:02:33.5]} 16... f5 {[%clk
0:01:52.8]} 17. h6 {[%clk 0:02:33.1]} 17... f4 {[%clk 0:01:36.6]} 18. Bxc5
{[%clk 0:02:29.4]} 18... dxc5 {[%clk 0:01:29.4]} 19. d6+ {[%clk 0:02:29.4]}
19... Kh8 {[%clk 0:01:21]} 20. hxg7+ {[%clk 0:02:23.6]} 20... Kxg7 {[%clk
0:01:20.8]} 21. Rxh7+ {[%clk 0:02:06]} 21... Kxh7 {[%clk 0:01:13.9]} 22. Qh5+
{[%clk 0:02:05.6]} 22... Kg7 {[%clk 0:01:09.2]} 23. Qxe5+ {[%clk 0:02:05.2]}
23... Rf6 {[%clk 0:01:08]} 24. dxe7 {[%clk 0:02:00.9]} 24... Qb8 {[%clk
0:00:56.8]} 25. Qxc5 {[%clk 0:01:51.9]} 25... f3 {[%clk 0:00:44.3]} 26. g3
{[%clk 0:01:44.9]} 26... Qe8 {[%clk 0:00:30.3]} 27. Kd2 {[%clk 0:01:32.4]} 27...
Qg6 {[%clk 0:00:23.1]} 28. Rh1 {[%clk 0:01:26.7]} 28... Rc8 {[%clk 0:00:19.6]}
29. Qe5 {[%clk 0:01:21.6]} 29... Be8 {[%clk 0:00:18.7]} 30. Be6 {[%clk
0:01:13.8]} 30... Rc6 {[%clk 0:00:13.8]} 31. Bf5 {[%clk 0:01:12.8]} 31... Qg5+
{[%clk 0:00:12.5]} 32. Qf4 {[%clk 0:01:12.9]} 32... Qxf4+ {[%clk 0:00:12.5]} 33.
gxf4 {[%clk 0:01:13.2]} 33... Rxf5 {[%clk 0:00:11]} 34. exf5 {[%clk 0:01:12.7]}
34... Kf6 {[%clk 0:00:10.6]} 35. Ke3 {[%clk 0:01:07.9]} 35... Kxe7 {[%clk
0:00:09.3]} 36. Kxf3 {[%clk 0:01:06.4]} 36... Rf6 {[%clk 0:00:09.7]} 37. Kg4
{[%clk 0:01:04.2]} 37... Bd7 {[%clk 0:00:07.2]} 38. Re1+ {[%clk 0:01:04.2]}
38... Kd6 {[%clk 0:00:06.6]} 39. Re5 {[%clk 0:01:04.8]} 39... Rg6+ {[%clk
0:00:06.2]} 40. Kh5 {[%clk 0:01:04.5]} 40... Rg2 {[%clk 0:00:06.5]} 41. f6
{[%clk 0:01:03.7]} 41... Rxf2 {[%clk 0:00:06.3]} 42. Kg5 {[%clk 0:01:01.9]}
42... Rg2+ {[%clk 0:00:06.3]} 43. Kh6 {[%clk 0:01:02.2]} 43... Rg4 {[%clk
0:00:05.8]} 44. Re4 {[%clk 0:00:56.1]} 44... Be6 {[%clk 0:00:03.2]} 45. f5
{[%clk 0:00:51.7]} 45... Rxe4 {[%clk 0:00:01.7]} 46. dxe4 {[%clk 0:00:50.5]}
46... Bb3 {[%clk 0:00:02]} 47. Kg7 {[%clk 0:00:48.2]} 47... Ke5 {[%clk
0:00:02.5]} 48. f7 {[%clk 0:00:48.3]} 48... Bxf7 {[%clk 0:00:02.4]} 49. Kxf7
{[%clk 0:00:48.4]} 49... Kxe4 {[%clk 0:00:03.3]} 50. f6 {[%clk 0:00:48.8]} 1-0